bitfinex/quotes_BTCUSD_20240723
["timestamp","ask_amount","ask_price","bid_price","bid_amount"]
[1721731026735,1.3401693,67101.0,67100.0,1.07880533]
[1721731027303,1.34030745,67101.0,67100.0,1.07880533]
[1721731027903,1.27680191,67101.0,67100.0,1.07880533]
[1721731028102,1.42735047,67101.0,67100.0,1.07880533]
[1721731028326,1.27680191,67101.0,67100.0,1.07880533]
[1721731031210,1.34024154,67101.0,67100.0,1.07880533]
[1721731031753,1.27680191,67101.0,67100.0,1.07880533]
[1721731032420,1.34032131,67101.0,67100.0,1.07880533]
[1721731032850,1.34032131,67101.0,67100.0,0.99710533]
[1721731032851,1.34032159,67101.0,67100.0,0.99710533]
[1721731033166,1.63837959,67101.0,67100.0,0.99710533]
[1721731033935,1.34032159,67101.0,67100.0,0.99710533]
[1721731034135,1.27680191,67101.0,67100.0,0.99710533]
[1721731035789,1.27680191,67101.0,67100.0,1.14030533]
[1721731035790,1.42745618,67101.0,67100.0,1.14030533]
[1721731035984,0.23359891,67101.0,67100.0,1.14030533]
[1721731036254,0.68068591,67101.0,67100.0,1.14030533]
[1721731036679,0.66768591,67101.0,67100.0,1.14030533]
[1721731037521,0.95274391,67101.0,67100.0,1.14030533]
[1721731037915,1.25080191,67101.0,67100.0,1.14030533]
[1721731038161,1.41547265,67101.0,67100.0,1.14030533]
[1721731038489,1.25080191,67101.0,67100.0,1.14030533]
[1721731038890,1.25380191,67101.0,67100.0,1.14030533]
[1721731039118,1.40446997,67101.0,67100.0,1.14030533]
[1721731039278,1.40346997,67101.0,67100.0,1.14030533]
[1721731039685,1.40646997,67101.0,67100.0,1.14030533]
[1721731040141,1.40446997,67101.0,67100.0,1.14030533]
[1721731040502,1.40746997,67101.0,67100.0,1.14030533]
[1721731040698,1.25680191,67101.0,67100.0,1.14030533]
[1721731041104,1.40749638,67101.0,67100.0,1.14030533]
[1721731042547,1.25680191,67101.0,67100.0,1.14030533]
[1721731043425,0.95874391,67101.0,67100.0,1.14030533]
[1721731044122,0.66068591,67101.0,67100.0,1.14030533]
[1721731044513,0.21359891,67101.0,67100.0,1.14030533]
[1721731044725,0.34759708,67101.0,67100.0,1.14030533]
[1721731045143,0.28785808,67101.0,67100.0,1.14030533]
[1721731045346,0.34759508,67101.0,67100.0,1.14030533]
[1721731045668,0.34759508,67101.0,67100.0,1.28933633]
[1721731045669,0.15385991,67101.0,67100.0,1.28933633]
[1721731045984,0.15085991,67101.0,67100.0,1.28933633]
[1721731046413,0.14985991,67101.0,67100.0,1.58739833]
[1721731046999,0.14785991,67101.0,67100.0,1.58739833]
[1721731047714,0.14785991,67101.0,67100.0,1.71125883]
[1721731047914,0.00084,67101.0,67100.0,2.09552083]
[1721731048114,0.09014405,67101.0,67100.0,2.09552083]
[1721731048439,0.04549023,67101.0,67100.0,2.39358283]
[1721731048604,0.00084,67101.0,67100.0,2.39358283]
[1721731049567,0.00084,67101.0,67100.0,2.09552083]
[1721731049719,0.04549023,67101.0,67100.0,2.09552083]
[1721731050123,0.04547587,67101.0,67100.0,1.97166033]
[1721731050332,0.00084,67101.0,67100.0,2.00931058]
[1721731052181,0.19249578,67101.0,67100.0,1.41318658]
[1721731052384,0.21481371,67101.0,67100.0,1.14030533]
[1721731052561,0.21481371,67101.0,67100.0,1.43836533]
[1721731052777,0.14785991,67101.0,67100.0,1.43836533]
[1721731052997,0.14785991,67101.0,67100.0,1.56222229]
[1721731053278,0.14785991,67101.0,67100.0,1.43836533]
[1721731054590,0.21475311,67101.0,67100.0,1.43836533]
[1721731054791,0.14785991,67101.0,67100.0,1.43836533]
[1721731055324,0.19244533,67101.0,67100.0,1.43836533]
[1721731055524,0.19244533,67101.0,67100.0,1.56222216]
[1721731056292,0.14785991,67101.0,67100.0,1.43836533]
[1721731056529,0.21473672,67101.0,67100.0,1.43836533]
[1721731056762,0.14785991,67101.0,67100.0,1.43836533]
[1721731058619,0.19244733,67101.0,67100.0,1.43836533]
[1721731058822,0.14785991,67101.0,67100.0,1.43836533]
[1721731059040,0.21473672,67101.0,67100.0,1.43836533]
[1721731059242,0.14785991,67101.0,67100.0,1.43836533]
[1721731059640,0.19244729,67101.0,67100.0,1.43836533]
[1721731060124,0.14785991,67101.0,67100.0,1.43836533]
[1721731060327,0.14785991,67101.0,67100.0,2.00931637]
[1721731060328,0.045426,67101.0,67100.0,2.00931637]
[1721731060545,0.00084,67101.0,67100.0,2.30737837]
[1721731061546,0.00084,67101.0,67100.0,2.60544037]
[1721731062514,0.00084,67101.0,67100.0,2.60543084]
[1721731063122,0.00084,67101.0,67100.0,2.67843084]
[1721731063371,0.00084,67101.0,67100.0,2.62843084]
[1721731063707,0.00084,67101.0,67100.0,2.67843084]
[1721731064099,0.00184,67101.0,67100.0,2.67843084]
[1721731065769,0.00184,67101.0,67100.0,2.67842258]
[1721731066688,0.00184,67101.0,67100.0,2.55458233]
[1721731069123,0.00184,67101.0,67100.0,2.56359833]
[1721731070742,0.00184,67101.0,67100.0,2.51359833]
[1721731071704,0.00184,67101.0,67100.0,2.63743761]
[1721731071935,0.00184,67101.0,67100.0,2.68743761]
[1721731072145,0.00184,67101.0,67100.0,2.73743761]
[1721731072350,0.00184,67101.0,67100.0,2.82363761]
[1721731074462,0.00184,67101.0,67100.0,2.69979833]
[1721731074660,0.00184,67101.0,67100.0,2.8236365]
[1721731076612,0.00184,67101.0,67100.0,3.42608977]
[1721731077525,0.00184,67101.0,67100.0,3.14786033]
[1721731077703,0.00184,67101.0,67100.0,3.42607086]
[1721731077843,0.00084,67101.0,67100.0,3.57509077]
[1721731078048,0.00184,67101.0,67100.0,3.57509077]
[1721731078243,0.00184,67101.0,67100.0,3.58009077]
[1721731078776,0.00084,67101.0,67100.0,3.57309077]
[1721731079182,0.00184,67101.0,67100.0,3.58009077]
[1721731079591,0.00084,67101.0,67100.0,3.57309077]
[1721731080108,0.00284,67101.0,67100.0,3.58909077]
[1721731080269,0.00184,67101.0,67100.0,3.58009077]
[1721731080681,0.00284,67101.0,67100.0,3.26088024]
[1721731080908,0.00284,67101.0,67100.0,3.58940173]
[1721731086224,0.00284,67101.0,67100.0,3.50320173]
[1721731086426,0.00284,67101.0,67100.0,3.53940173]
[1721731086857,0.00284,67101.0,67100.0,3.26088024]
[1721731087063,0.00284,67101.0,67100.0,3.53924803]
[1721731087476,0.00284,67101.0,67100.0,3.26088024]
[1721731087689,0.00284,67101.0,67100.0,3.53924803]
[1721731087888,0.00284,67101.0,67100.0,3.45304803]
[1721731088154,0.00284,67101.0,67100.0,3.53924803]
[1721731089749,0.00284,67101.0,67100.0,3.34222812]
[1721731089911,0.00284,67101.0,67100.0,3.39222812]
[1721731090075,0.00284,67101.0,67100.0,3.26840581]
[1721731090289,0.00284,67101.0,67100.0,3.39271355]
[1721731093335,0.00284,67101.0,67100.0,3.39291735]
[1721731096440,0.00284,67101.0,67100.0,3.11386033]
[1721731096642,0.00284,67101.0,67100.0,3.3928132]
[1721731097427,0.00284,67101.0,67100.0,3.3428132]
[1721731098633,0.00284,67101.0,67100.0,3.3928132]
[1721731099505,0.00284,67101.0,67100.0,3.3428132]
[1721731099733,0.00284,67101.0,67100.0,3.34303673]
[1721731102487,0.00284,67101.0,67100.0,2.95877473]
[1721731102615,0.00284,67101.0,67100.0,3.04497473]
[1721731102816,0.00284,67101.0,67100.0,3.04500175]
[1721731103016,0.00284,67101.0,67100.0,2.99500175]
[1721731104604,0.00284,67101.0,67100.0,2.27587775]
[1721731104775,0.00284,67101.0,67100.0,1.97730288]
[1721731105407,0.00184,67101.0,67100.0,2.26636488]
[1721731105853,0.00284,67101.0,67100.0,2.24753633]
[1721731106029,0.00284,67101.0,67100.0,2.37138094]
[1721731106237,0.00284,67101.0,67100.0,2.79674294]
[1721731106439,0.00284,67101.0,67100.0,2.81792147]
[1721731106639,0.00284,67101.0,67100.0,3.13898347]
[1721731106839,0.00184,67101.0,67100.0,3.13198347]
[1721731107064,0.00184,67101.0,67100.0,3.43604547]
[1721731107265,0.00184,67101.0,67100.0,3.13798347]
[1721731107266,0.00284,67101.0,67100.0,3.13798347]
[1721731108958,0.00284,67101.0,67100.0,3.1373767]
[1721731109617,0.00284,67101.0,67100.0,3.28439661]
[1721731109816,0.00284,67101.0,67100.0,3.58245861]
[1721731110515,0.00284,67101.0,67100.0,3.0373767]
[1721731110922,0.00284,67101.0,67100.0,2.9873767]
[1721731111126,0.00284,67101.0,67100.0,3.0373767]
[1721731111333,0.00284,67101.0,67100.0,2.9009767]
[1721731111593,0.00284,67101.0,67100.0,2.8147767]
[1721731111808,0.00284,67101.0,67100.0,2.9009767]
[1721731112048,0.00284,67101.0,67100.0,2.90175076]
[1721731115099,0.00284,67101.0,67100.0,2.90174878]
[1721731116934,0.00284,67101.0,67100.0,2.81554878]
[1721731117131,0.00284,67101.0,67100.0,2.90174878]
[1721731118096,0.00284,67101.0,67100.0,2.62189833]
[1721731118247,0.00284,67101.0,67100.0,2.90185407]
[1721731119554,0.00284,67101.0,67100.0,2.52649207]
[1721731121162,0.00284,67101.0,67100.0,2.24653633]
[1721731121363,0.00284,67101.0,67100.0,2.52753974]
[1721731124498,0.00284,67101.0,67100.0,2.52701448]
[1721731125705,0.00284,67101.0,67100.0,2.22895248]
[1721731125859,0.00284,67101.0,67100.0,1.97231308]
[1721731126059,0.00284,67101.0,67100.0,1.43000408]
[1721731126259,0.11704,67101.0,67100.0,1.57903508]
[1721731126645,0.18407706,67101.0,67100.0,1.57903508]
[1721731126825,0.18407706,67101.0,67100.0,1.87709708]
[1721731127430,0.18405976,67101.0,67100.0,1.75325833]
[1721731127635,0.18405976,67101.0,67100.0,1.87710864]
[1721731127836,0.18405976,67101.0,67100.0,1.57904664]
[1721731128551,0.06564,67101.0,67100.0,1.87710864]
[1721731128955,0.06564,67101.0,67100.0,1.57904664]
[1721731129290,0.11031299,67101.0,67100.0,1.57904664]
[1721731129482,0.06564,67101.0,67100.0,1.57904664]
[1721731129731,0.11031299,67101.0,67100.0,1.57904664]
[1721731130611,0.11030395,67101.0,67100.0,1.43001402]
[1721731130842,0.11030395,67101.0,67100.0,1.57904502]
[1721731131952,0.06564,67101.0,67100.0,1.43001402]
[1721731132645,0.06564,67101.0,67100.0,1.57904502]
[1721731133755,0.06564,67101.0,67100.0,1.70289495]
[1721731134921,0.06564,67101.0,67100.0,1.55386395]
[1721731135149,0.06564,67101.0,67100.0,1.70289495]
[1721731135484,0.06425571,67101.0,67100.0,1.70289495]
[1721731136920,0.06425571,67101.0,67100.0,1.70289555]
[1721731137905,0.06425571,67101.0,67100.0,2.00095755]
[1721731138150,0.00145571,67101.0,67100.0,2.00095755]
[1721731140180,0.00145571,67101.0,67100.0,2.00095831]
[1721731142871,0.00145571,67101.0,67100.0,2.81167173]
[1721731146504,0.00145571,67101.0,67100.0,2.81166345]
[1721731146946,0.00145571,67101.0,67100.0,2.81166346]
[1721731147751,0.00145571,67101.0,67100.0,2.68782106]
[1721731147887,0.00145571,67101.0,67100.0,2.81166479]
[1721731149759,0.00145571,67101.0,67100.0,2.81166472]
[1721731150005,0.00145571,67101.0,67100.0,2.81166473]
[1721731152754,0.00145571,67101.0,67100.0,2.68782106]
[1721731152958,0.00145571,67101.0,67100.0,2.98978835]
[1721731153720,0.00145571,67101.0,67100.0,2.83466189]
[1721731154149,0.00145571,67101.0,67100.0,2.86523868]
[1721731154364,0.00145571,67101.0,67100.0,3.26330068]
[1721731154699,0.00145571,67101.0,67100.0,3.31330068]
[1721731155771,0.00145571,67101.0,67100.0,3.21330068]
[1721731156000,0.00145571,67101.0,67100.0,3.21339932]
[1721731158167,0.00145571,67101.0,67100.0,3.26339932]
[1721731158397,0.00145571,67101.0,67100.0,3.21339932]
[1721731159079,0.00145571,67101.0,67100.0,2.93503375]
[1721731159284,0.00145571,67101.0,67100.0,3.2133147]
[1721731161728,0.04618624,67101.0,67100.0,3.2133147]
[1721731162303,0.0461898,67101.0,67100.0,3.21672362]
[1721731162553,0.04619035,67101.0,67100.0,3.21672366]
[1721731163161,0.00145571,67101.0,67100.0,3.21672366]
[1721731163642,0.00145571,67101.0,67100.0,3.26672366]
[1721731164045,0.00145571,67101.0,67100.0,3.31672366]
[1721731165435,0.00145571,67101.0,67100.0,3.3167131]
[1721731165981,0.00145571,67101.0,67100.0,3.4167131]
[1721731166211,0.00145571,67101.0,67100.0,3.56373301]
[1721731166387,0.00145571,67101.0,67100.0,3.86179501]
[1721731167006,0.00229571,67101.0,67100.0,3.86179501]
[1721731167432,0.00229571,67101.0,67100.0,3.51373301]
[1721731167632,0.00229571,67101.0,67100.0,3.46373301]
[1721731168528,0.00229571,67101.0,67100.0,3.35298703]
[1721731168752,0.00229571,67101.0,67100.0,3.40298703]
[1721731170908,0.00229571,67101.0,67100.0,3.45298703]
[1721731171062,0.00229571,67101.0,67100.0,3.50298703]
[1721731171403,0.00229571,67101.0,67100.0,3.45298703]
[1721731171607,0.00229571,67101.0,67100.0,3.45351551]
[1721731172631,0.00229571,67101.0,67100.0,3.40351551]
[1721731173228,0.00229571,67101.0,67100.0,3.45351551]
[1721731174616,0.00229571,67101.0,67100.0,3.50350761]
[1721731175797,0.00229571,67101.0,67100.0,3.45350761]
[1721731176209,0.00229571,67101.0,67100.0,3.40350761]
[1721731177578,0.00229571,67101.0,67100.0,3.45350761]
[1721731177851,0.00229571,67101.0,67100.0,3.3299643]
[1721731178054,0.00229571,67101.0,67100.0,3.40379496]
[1721731180922,0.00229571,67101.0,67100.0,3.12123375]
[1721731181128,0.00229571,67101.0,67100.0,3.40387717]
[1721731181727,0.00229571,67101.0,67100.0,3.45387717]
[1721731182560,0.00229571,67101.0,67100.0,3.40387717]
[1721731182697,0.00229571,67101.0,67100.0,3.45387717]
[1721731184178,0.00229571,67101.0,67100.0,3.45369652]
[1721731184995,0.00229571,67101.0,67100.0,3.50369652]
[1721731186782,0.00229571,67101.0,67100.0,3.41749652]
[1721731186985,0.00229571,67101.0,67100.0,3.45369652]
[1721731187189,0.00229571,67101.0,67100.0,3.17123375]
[1721731187388,0.00229571,67101.0,67100.0,3.40397966]
[1721731190405,0.00229571,67101.0,67100.0,3.24506422]
[1721731190577,0.00229571,67101.0,67100.0,3.40486513]
[1721731192590,0.00229571,67101.0,67100.0,2.83591371]
[1721731192733,0.00229571,67101.0,67100.0,2.89911371]
[1721731193338,0.00229571,67101.0,67100.0,2.81921371]
[1721731193547,0.00229571,67101.0,67100.0,2.53558233]
[1721731193716,0.00229571,67101.0,67100.0,2.8195607]
[1721731196714,0.00229571,67101.0,67100.0,2.81964008]
[1721731199020,0.00229571,67101.0,67100.0,2.95844008]
[1721731199635,0.00229571,67101.0,67100.0,3.30650208]
[1721731200108,0.00229571,67101.0,67100.0,3.42950208]
[1721731202120,0.00229571,67101.0,67100.0,3.37950208]
[1721731202906,0.00229571,67101.0,67100.0,3.37904606]
[1721731205715,0.00229571,67101.0,67100.0,3.42904606]
[1721731205915,0.00229571,67101.0,67100.0,3.14544433]
[1721731206120,0.00229571,67101.0,67100.0,3.42911189]
[1721731208000,0.00229571,67101.0,67100.0,3.42903219]
[1721731208204,0.00229571,67101.0,67100.0,3.87415836]
[1721731209474,0.00229571,67101.0,67100.0,3.8741269]
[1721731211695,0.04473202,67113.0,67112.0,1.39104]
[1721731211894,0.04473202,67115.0,67113.0,0.45768942]
[1721731212120,0.04473202,67116.0,67115.0,0.148997]
[1721731212344,0.04473202,67116.0,67115.0,0.81679766]
[1721731212495,0.11183005,67121.0,67119.0,1.042923]
[1721731212496,0.11183398,67121.0,67119.0,1.042923]
[1721731212697,0.20545144,67120.0,67119.0,1.55091521]
[1721731213748,0.116,67120.0,67119.0,1.55091521]
[1721731215312,0.117,67120.0,67119.0,1.56591521]
[1721731215518,0.117,67120.0,67119.0,1.442103]
[1721731215719,0.18406357,67120.0,67119.0,1.56591507]
[1721731218487,0.001,67120.0,67119.0,1.64211507]
[1721731218666,0.001,67120.0,67119.0,1.518303]
[1721731218868,0.06804417,67120.0,67119.0,1.56591492]
[1721731219077,0.06804406,67120.0,67119.0,1.56591521]
[1721731219550,0.001,67120.0,67119.0,1.56591521]
[1721731222265,0.0524,67120.0,67119.0,1.57479581]
[1721731222470,0.1173,67120.0,67119.0,1.47971521]
[1721731222674,0.1173,67120.0,67119.0,0.88375921]
[1721731223216,0.20668228,67120.0,67119.0,0.88375921]
[1721731225203,0.1173,67120.0,67119.0,0.759947]
[1721731225416,0.2066791,67120.0,67119.0,0.88376467]
[1721731226706,0.1173,67120.0,67119.0,0.58578667]
[1721731226956,0.1173,67120.0,67119.0,0.88376467]
[1721731227235,0.2066791,67120.0,67119.0,0.88376467]
[1721731228270,0.1173,67120.0,67119.0,0.88376467]
[1721731228623,0.20667172,67120.0,67119.0,0.88376467]
[1721731229384,0.20667172,67120.0,67119.0,0.43679767]
[1721731229564,0.1173,67120.0,67119.0,0.43679767]
[1721731229986,0.22901465,67120.0,67119.0,0.58578667]
[1721731230193,0.1173,67120.0,67119.0,0.58578667]
[1721731230599,0.22901465,67120.0,67119.0,0.58578667]
[1721731231008,0.22901465,67120.0,67119.0,0.88376467]
[1721731231222,0.22985465,67120.0,67119.0,0.88376467]
[1721731231407,0.22986243,67120.0,67119.0,0.461969]
[1721731231613,0.22986243,67120.0,67119.0,0.96056872]
[1721731231614,0.11356243,67120.0,67119.0,0.96056872]
[1721731231822,0.09122214,67120.0,67119.0,1.25854672]
[1721731231972,0.00184,67120.0,67119.0,1.25854672]
[1721731234411,0.00184,67120.0,67119.0,1.55652472]
[1721731237589,0.00184,67120.0,67119.0,1.55651573]
[1721731240781,0.00184,67120.0,67119.0,1.5565157]
[1721731241204,0.06888096,67120.0,67119.0,1.5565157]
[1721731241409,0.06888096,67120.0,67119.0,1.56559695]
[1721731243761,0.00184,67120.0,67119.0,1.56559695]
[1721731243971,0.00184,67120.0,67119.0,1.56559698]
[1721731247241,0.00184,67120.0,67119.0,1.44178425]
[1721731247414,0.0912803,67120.0,67119.0,1.56559698]
[1721731248076,0.0912803,67120.0,67119.0,1.48879698]
[1721731248322,0.1426803,67120.0,67119.0,1.47971573]
[1721731249128,0.0912803,67120.0,67119.0,1.47971573]
[1721731250343,0.09129778,67120.0,67119.0,1.47971573]
[1721731250543,0.00184,67120.0,67119.0,1.47971573]
[1721731250744,0.09130459,67120.0,67119.0,1.55481573]
[1721731251700,0.00184,67120.0,67119.0,1.55481573]
[1721731251863,0.09131193,67120.0,67119.0,1.55481573]
[1721731252528,0.00184,67120.0,67119.0,1.55481573]
[1721731254152,0.00184,67120.0,67119.0,1.18173773]
[1721731255741,0.11370438,67120.0,67119.0,1.18173773]
[1721731256690,0.37834347,67120.0,67119.0,0.31298]
[1721731256888,0.41544591,67120.0,67119.0,0.43679273]
[1721731257440,0.71341891,67120.0,67119.0,0.43679273]
[1721731257648,1.01139191,67120.0,67119.0,0.43679273]
[1721731257849,1.46040772,67120.0,67119.0,0.31298]
[1721731258055,1.30936491,67120.0,67119.0,0.31298]
[1721731258415,1.46037023,67120.0,67119.0,0.31298]
[1721731258792,1.45937023,67120.0,67119.0,0.29798]
[1721731258951,1.46032756,67120.0,67119.0,0.29798]
[1721731259770,1.46632756,67120.0,67119.0,0.29798]
[1721731260383,1.31936491,67120.0,67119.0,0.29798]
[1721731261466,1.47017395,67120.0,67119.0,0.29798]
[1721731262424,1.31936491,67120.0,67119.0,0.29798]
[1721731265334,1.02139191,67120.0,67119.0,0.29798]
[1721731265538,0.72341891,67120.0,67119.0,0.29798]
[1721731265736,0.15885991,67120.0,67119.0,0.29798]
[1721731266821,0.30784591,67120.0,67119.0,0.29798]
[1721731267024,0.60581891,67120.0,67119.0,0.29798]
[1721731267189,0.60081891,67120.0,67119.0,0.29798]
[1721731267874,0.30284591,67120.0,67119.0,0.29798]
[1721731268375,0.14785991,67120.0,67119.0,0.29798]
[1721731268835,0.14885991,67120.0,67119.0,0.29798]
[1721731269301,0.29784591,67120.0,67119.0,0.29798]
[1721731272357,0.14885991,67120.0,67119.0,0.29798]
[1721731272931,0.29784591,67120.0,67119.0,0.29798]
[1721731274290,0.14885991,67120.0,67119.0,0.29798]
[1721731275581,0.29784591,67120.0,67119.0,0.29798]
[1721731278027,0.59581891,67120.0,67119.0,0.29798]
[1721731278261,1.00549191,67120.0,67119.0,0.29798]
[1721731278495,1.30346491,67120.0,67119.0,0.29798]
[1721731278998,1.43740196,67120.0,67119.0,0.29798]
[1721731279236,1.00549191,67120.0,67119.0,0.29798]
[1721731280431,0.95409191,67120.0,67119.0,0.29798]
[1721731280682,0.29784591,67120.0,67119.0,0.29798]
[1721731280925,0.14885991,67120.0,67119.0,0.744947]
[1721731281170,0.23815237,67120.0,67119.0,1.042925]
[1721731281421,0.23815237,67120.0,67119.0,0.86877254]
[1721731281422,0.14885991,67120.0,67119.0,0.86877254]
[1721731281677,0.14885991,67120.0,67119.0,0.57079173]
[1721731281882,0.26047663,67120.0,67119.0,0.744947]
[1721731282100,0.25947663,67120.0,67119.0,0.744947]
[1721731282306,0.14785991,67120.0,67119.0,0.747947]
[1721731282717,0.25947985,67120.0,67119.0,1.045925]
[1721731282890,0.14785991,67120.0,67119.0,0.747947]
[1721731283125,0.25948,67120.0,67119.0,0.747947]
[1721731283522,0.14785991,67120.0,67119.0,0.747947]
[1721731283759,0.25948,67120.0,67119.0,0.747947]
[1721731283968,0.14785991,67120.0,67119.0,0.87177321]
[1721731284364,0.23715807,67120.0,67119.0,0.87177321]
[1721731284636,0.23715847,67120.0,67119.0,0.87177321]
[1721731284850,0.14785991,67120.0,67119.0,0.87177263]
[1721731285531,0.14785991,67120.0,67119.0,0.747947]
[1721731285977,0.14785991,67120.0,67119.0,0.87177377]
[1721731286208,0.14785991,67120.0,67119.0,0.87177375]
[1721731286432,0.14785991,67120.0,67119.0,0.747947]
[1721731287340,0.14785991,67120.0,67119.0,0.30098]
[1721731287560,0.14785991,67120.0,67119.0,0.87177669]
[1721731287783,0.14785991,67120.0,67119.0,0.449969]
[1721731289418,0.14785991,67120.0,67119.0,0.57379869]
[1721731289882,0.14785991,67120.0,67119.0,0.449969]
[1721731290118,0.14785991,67120.0,67119.0,0.595869]
[1721731290555,0.14785991,67120.0,67119.0,0.71969869]
[1721731291579,0.14785991,67120.0,67119.0,1.01767669]
[1721731294179,0.14785991,67120.0,67119.0,0.893847]
[1721731294431,0.14785991,67120.0,67119.0,1.01767654]
[1721731302077,0.14785991,67120.0,67119.0,1.31565454]
[1721731303649,0.14785991,67120.0,67119.0,1.31564857]
[1721731304652,0.14785991,67120.0,67119.0,1.31564859]
[1721731306921,0.14785991,67120.0,67119.0,1.191825]
[1721731307106,0.14785991,67120.0,67119.0,1.01767057]
[1721731307302,0.14785991,67120.0,67119.0,0.57070357]
[1721731307531,0.14785991,67120.0,67119.0,0.42480357]
[1721731307532,0.44583291,67120.0,67119.0,0.42480357]
[1721731307746,1.0505531,67120.0,67119.0,0.30098]
[1721731307946,1.30806491,67120.0,67119.0,0.30098]
[1721731308274,1.45896954,67120.0,67119.0,0.30098]
[1721731308488,1.30806491,67120.0,67119.0,0.29998]
[1721731308891,1.31406491,67120.0,67119.0,0.29998]
[1721731309301,1.45896954,67120.0,67119.0,0.29998]
[1721731309738,1.31406491,67120.0,67119.0,0.29998]
[1721731310144,1.46498998,67120.0,67119.0,0.29798]
[1721731310342,1.31406491,67120.0,67119.0,0.29798]
[1721731310544,1.46998998,67120.0,67119.0,0.29798]
[1721731311073,1.46498998,67120.0,67119.0,0.29798]
[1721731311237,1.31406491,67120.0,67119.0,0.29798]
[1721731311443,1.47001565,67120.0,67119.0,0.29798]
[1721731312142,1.31906491,67120.0,67119.0,0.29798]
[1721731313505,1.36906491,67120.0,67119.0,0.29798]
[1721731313705,1.31906491,67120.0,67119.0,0.29798]
[1721731320293,1.66703791,67120.0,67119.0,0.29798]
[1721731320656,1.61703791,67120.0,67119.0,0.29798]
[1721731320858,0.67171891,67120.0,67119.0,0.29798]
[1721731321088,0.60581891,67120.0,67119.0,0.43578]
[1721731321294,0.90379191,67120.0,67119.0,0.43578]
[1721731321490,0.60581891,67120.0,67119.0,0.43578]
[1721731321691,0.15885991,67120.0,67119.0,0.584769]
[1721731321894,0.29291591,67120.0,67119.0,0.584769]
[1721731322071,0.15885991,67120.0,67119.0,1.30455048]
[1721731322287,0.27058089,67120.0,67119.0,1.30455048]
[1721731322512,0.12356098,67120.0,67119.0,1.30455048]
[1721731322725,0.12356098,67120.0,67119.0,1.60252848]
[1721731323137,0.00084,67120.0,67119.0,1.30455048]
[1721731323529,0.00084,67120.0,67119.0,1.30555048]
[1721731324123,0.00084,67120.0,67119.0,1.30655048]
[1721731324332,0.00184,67120.0,67119.0,1.31355048]
[1721731324481,0.00184,67120.0,67119.0,1.61152848]
[1721731325449,0.09120672,67120.0,67119.0,1.61152848]
[1721731325708,0.09120672,67120.0,67119.0,1.60952848]
[1721731325709,0.00184,67120.0,67119.0,1.60952848]
[1721731326217,0.00284,67120.0,67119.0,1.61652848]
[1721731326418,0.00284,67120.0,67119.0,1.92343574]
[1721731326930,0.00284,67120.0,67119.0,1.97341046]
[1721731327132,0.00284,67120.0,67119.0,1.96641046]
[1721731327133,0.00184,67120.0,67119.0,1.96641046]
[1721731327380,0.00084,67120.0,67119.0,1.92341046]
[1721731327549,0.00284,67120.0,67119.0,1.93741046]
[1721731327969,0.00284,67120.0,67119.0,1.98741046]
[1721731328194,0.00284,67120.0,67119.0,2.27059304]
[1721731328600,0.00284,67120.0,67119.0,2.27058266]
[1721731328800,0.00284,67120.0,67119.0,2.22058266]
[1721731329006,0.00184,67120.0,67119.0,2.20658266]
[1721731329209,0.00184,67120.0,67119.0,2.02360422]
[1721731329411,0.00084,67120.0,67119.0,1.69762622]
[1721731329789,0.00084,67120.0,67119.0,1.72562622]
[1721731330124,0.00084,67120.0,67119.0,1.71162622]
[1721731330268,0.00084,67120.0,67119.0,1.72562622]
[1721731330682,0.00084,67120.0,67119.0,1.71162622]
[1721731330885,0.00084,67120.0,67119.0,1.72462622]
[1721731331522,0.00084,67120.0,67119.0,1.72464415]
[1721731331868,0.00084,67120.0,67119.0,1.73864415]
[1721731333244,0.00084,67120.0,67119.0,1.44066615]
[1721731333940,0.00084,67120.0,67119.0,1.35446615]
[1721731334160,0.00084,67120.0,67119.0,1.44066615]
[1721731334658,0.00084,67120.0,67119.0,1.44066689]
[1721731337856,0.00084,67120.0,67119.0,1.43173763]
[1721731340767,0.00084,67120.0,67119.0,1.307925]
[1721731340988,0.00084,67120.0,67119.0,1.43173449]
[1721731343900,0.00084,67120.0,67119.0,1.307925]
[1721731344053,0.00084,67120.0,67119.0,1.43173757]
[1721731347169,0.00084,67120.0,67119.0,1.4317376]
[1721731347627,0.14785991,67120.0,67119.0,0.9870596]
[1721731347808,0.14785991,67120.0,67119.0,0.4627926]
[1721731347966,0.14785991,67120.0,67119.0,0.6117816]
[1721731348164,0.14785991,67120.0,67119.0,0.9097596]
[1721731349363,0.14785991,67120.0,67119.0,0.4627926]
[1721731350142,0.14785991,67120.0,67119.0,0.6117816]
[1721731350366,0.14785991,67120.0,67119.0,0.61178943]
[1721731351274,0.14785991,67120.0,67119.0,0.90976743]
[1721731351741,0.14785991,67120.0,67119.0,1.20774543]
[1721731352415,0.14785991,67120.0,67119.0,0.90976743]
[1721731355539,0.14785991,67120.0,67119.0,1.20774543]
[1721731355758,0.14785991,67120.0,67119.0,0.90976743]
[1721731356401,0.14785991,67120.0,67119.0,0.785947]
[1721731356658,0.14785991,67120.0,67119.0,0.90976802]
[1721731357755,0.14785991,67120.0,67119.0,1.20774602]
[1721731358192,0.00084,67120.0,67119.0,1.20774602]
[1721731358393,0.00084,67120.0,67119.0,1.35004602]
[1721731358510,0.00084,67120.0,67119.0,1.64802402]
[1721731358704,0.00084,67120.0,67119.0,1.35004602]
[1721731359612,0.00084,67120.0,67119.0,1.3500452]
[1721731360199,0.04546919,67120.0,67119.0,1.3500452]
[1721731361383,0.04546919,67120.0,67119.0,1.6480232]
[1721731361684,0.04546919,67120.0,67119.0,1.3500452]
[1721731362336,0.00084,67120.0,67119.0,1.3500452]
[1721731362789,0.00084,67120.0,67119.0,1.35004521]
[1721731363172,0.04549456,67120.0,67119.0,1.35004521]
[1721731363383,0.04549456,67120.0,67119.0,1.64802321]
[1721731364423,0.04551284,67120.0,67119.0,1.64802321]
[1721731364967,0.04551284,67120.0,67119.0,1.94600121]
[1721731365191,0.00084,67120.0,67119.0,2.20524595]
[1721731365367,0.00084,67120.0,67119.0,2.15524595]
[1721731366029,0.00084,67120.0,67119.0,2.15520578]
[1721731367939,0.00084,67120.0,67119.0,1.80722778]
[1721731368893,0.00084,67120.0,67119.0,1.524203]
[1721731369087,0.00084,67120.0,67119.0,1.81106061]
[1721731372098,0.00084,67120.0,67119.0,1.81117492]
[1721731374892,0.00084,67120.0,67119.0,1.89737492]
[1721731375306,0.00084,67120.0,67119.0,1.89725228]
[1721731375511,0.00084,67120.0,67119.0,1.73420461]
[1721731375929,0.0455438,67120.0,67119.0,1.73420461]
[1721731376537,0.00084,67120.0,67119.0,1.43622661]
[1721731376737,0.0678957,67120.0,67119.0,1.43622661]
[1721731376958,0.0678957,67120.0,67119.0,0.61177061]